bitfinex/quotes_BTCUSD_20240712
["timestamp","ask_amount","ask_price","bid_price","bid_amount"]
[1720776280884,0.0739,57374.0,57362.0,0.199]
[1720776280885,0.01,57373.0,57362.0,0.0655]
[1720776281096,0.0639,57372.0,57362.0,0.0655]
[1720776281303,1.002695,57371.0,57362.0,0.0655]
[1720776281532,1.058695,57370.0,57362.0,0.0655]
[1720776281735,0.673695,57369.0,57362.0,0.0655]
[1720776281879,0.1,57368.0,57362.0,0.0655]
[1720776282289,0.0739,57367.0,57361.0,0.000913]
[1720776282498,0.0739,57367.0,57351.0,0.199]
[1720776282499,0.438981,57366.0,57351.0,0.0645]
[1720776282706,0.02182567,57367.0,57351.0,0.0645]
[1720776282707,0.001,57362.0,57351.0,0.0645]
[1720776282953,0.0282,57360.0,57351.0,0.04624328]
[1720776283503,0.0282,57360.0,57351.0,0.14624328]
[1720776283703,0.0282,57360.0,57351.0,0.04724328]
[1720776284422,0.0282,57360.0,57351.0,0.001]
[1720776284423,0.001,57357.0,57351.0,0.001]
[1720776284630,0.966972,57356.0,57351.0,0.001]
[1720776284856,0.967972,57356.0,57351.0,0.001]
[1720776285062,1.203884,57355.0,57346.0,0.0783]
[1720776285260,1.203884,57355.0,57347.0,0.1]
[1720776285261,0.173858,57354.0,57347.0,0.1]
[1720776285468,0.1,57353.0,57351.0,0.001]
[1720776285890,0.1,57353.0,57347.0,0.1]
[1720776286646,0.005,57355.0,57347.0,0.1]
[1720776286982,0.173858,57354.0,57347.0,0.1]
[1720776287195,0.009,57353.0,57347.0,0.1]
[1720776287327,0.004,57353.0,57347.0,0.1]
[1720776287541,0.008,57353.0,57348.0,0.0616]
[1720776287938,0.004,57353.0,57348.0,0.0616]
[1720776288461,0.020971,57356.0,57348.0,0.0616]
[1720776288645,0.0195481,57355.0,57348.0,0.0616]
[1720776288845,0.2374051,57355.0,57348.0,0.0616]
[1720776289118,0.272857,57354.0,57348.0,0.0616]
[1720776289305,0.106,57354.0,57348.0,0.0616]
[1720776289512,0.1,57354.0,57348.0,0.0616]
[1720776290008,0.0265481,57355.0,57348.0,0.0616]
[1720776290210,0.1639,57359.0,57348.0,0.0616]
[1720776290406,0.009,57354.0,57348.0,0.0616]
[1720776292025,0.006,57354.0,57348.0,0.0616]
[1720776293047,0.01,57354.0,57348.0,0.0616]
[1720776296223,0.01,57354.0,57346.0,0.139]
[1720776296224,0.0514,57353.0,57346.0,0.139]
[1720776296461,0.01363,57352.0,57343.0,0.139]
[1720776296914,0.001,57351.0,57343.0,0.139]
[1720776297334,0.01925673,57351.0,57343.0,0.139]
[1720776298388,0.001,57350.0,57343.0,0.139]
[1720776298605,0.01925673,57351.0,57343.0,0.139]
[1720776298806,0.001,57350.0,57343.0,0.139]
[1720776300247,0.0639,57354.0,57343.0,0.139]
[1720776300248,0.02039583,57354.0,57343.0,0.139]
[1720776300424,0.003,57350.0,57343.0,0.139]
[1720776300627,0.02125673,57350.0,57343.0,0.139]
[1720776300832,0.02725673,57350.0,57343.0,0.139]
[1720776301069,0.02125673,57350.0,57343.0,0.139]
[1720776301664,0.01825673,57350.0,57343.0,0.139]
[1720776301782,0.01825673,57350.0,57344.0,0.00194994]
[1720776301986,0.01825673,57350.0,57343.0,0.139]
[1720776302188,0.01825673,57350.0,57344.0,0.00205881]
[1720776302459,0.01825673,57350.0,57343.0,0.139]
[1720776302905,0.02225673,57350.0,57343.0,0.139]
[1720776303115,0.02725673,57350.0,57343.0,0.14]
[1720776303330,0.02325673,57350.0,57343.0,0.14]
[1720776303768,0.02725673,57350.0,57343.0,0.14]
[1720776305554,0.02325673,57350.0,57343.0,0.14]
[1720776305759,0.02725673,57350.0,57343.0,0.14]
[1720776311413,0.04975465,57350.0,57343.0,0.14]
[1720776313474,0.04975465,57350.0,57340.0,0.07828746]
[1720776313475,0.285532,57349.0,57340.0,0.07828746]
[1720776313676,0.0811,57347.0,57330.0,0.2]
[1720776313924,1.237686,57346.0,57332.0,0.1]
[1720776314141,0.1,57345.0,57334.0,0.1]
[1720776314313,1.11552,57344.0,57330.0,0.2]
[1720776314515,0.917585,57343.0,57330.0,0.2]
[1720776314715,0.1,57343.0,57330.0,0.2]
[1720776314893,0.0551,57344.0,57330.0,0.2]
[1720776315089,0.75102,57343.0,57332.0,0.1]
[1720776315290,0.1,57342.0,57330.0,0.2]
[1720776315490,0.1,57342.0,57334.0,0.1]
[1720776315967,0.01825673,57341.0,57330.0,0.2]
[1720776316166,0.0379544,57341.0,57330.0,0.2]
[1720776316367,0.1165544,57341.0,57331.0,0.064]
[1720776316631,0.1,57340.0,57331.0,0.064]
[1720776316833,0.1,57340.0,57331.0,0.1404]
[1720776317777,0.05376034,57340.0,57331.0,0.1404]
[1720776317934,0.05376034,57339.0,57331.0,0.1404]
[1720776318147,0.02526171,57338.0,57331.0,0.1404]
[1720776319521,0.12626171,57338.0,57331.0,0.1404]
[1720776319723,0.02626171,57338.0,57331.0,0.1404]
[1720776319921,0.02726171,57338.0,57331.0,0.1404]
[1720776320799,0.0551,57337.0,57331.0,0.1404]
[1720776321001,0.01823617,57336.0,57331.0,0.1404]
[1720776322507,0.1561,57337.0,57331.0,0.1404]
[1720776322678,0.1551,57337.0,57331.0,0.1404]
[1720776322894,0.1561,57337.0,57331.0,0.1404]
[1720776323078,0.001,57336.0,57331.0,0.1404]
[1720776323274,0.01813617,57335.0,57331.0,0.1404]
[1720776324167,0.001,57336.0,57331.0,0.1404]
[1720776324375,0.001,57336.0,57331.0,0.12537251]
[1720776324585,0.0814,57334.0,57325.0,0.000913]
[1720776324784,0.0470976,57333.0,57325.0,0.000913]
[1720776325173,0.1470976,57333.0,57325.0,0.100913]
[1720776326389,0.1560976,57333.0,57325.0,0.100913]
[1720776326772,0.1670976,57333.0,57325.0,0.100913]
[1720776327021,0.1670976,57333.0,57325.0,0.000913]
[1720776327394,0.1670976,57333.0,57326.0,0.0663]
[1720776327571,0.1670976,57333.0,57327.0,0.0763]
[1720776328343,0.02484976,57332.0,57327.0,0.0763]
[1720776329488,0.03184976,57332.0,57327.0,0.0763]
[1720776329941,0.04084976,57332.0,57327.0,0.0763]
[1720776331239,0.01825673,57331.0,57327.0,0.0763]
[1720776332463,0.02625673,57331.0,57327.0,0.0763]
[1720776332844,0.13225673,57331.0,57327.0,0.0763]
[1720776333068,0.1,57330.0,57327.0,0.0763]
[1720776333326,0.03225673,57331.0,57327.0,0.0763]
[1720776333943,0.02625673,57331.0,57327.0,0.0763]
[1720776334366,0.005,57330.0,57327.0,0.0763]
[1720776334860,0.02625673,57331.0,57327.0,0.077213]
[1720776335077,0.03225673,57331.0,57327.0,0.077213]
[1720776335480,0.1315,57337.0,57327.0,0.077213]
[1720776335481,0.03039178,57338.0,57327.0,0.077213]
[1720776335692,0.006,57330.0,57328.0,0.00306353]
[1720776335856,0.005,57330.0,57327.0,0.077213]
[1720776336796,0.014,57338.0,57327.0,0.077213]
[1720776336999,0.477098,57337.0,57328.0,0.00306353]
[1720776337128,0.351904,57336.0,57327.0,0.077213]
[1720776337329,0.455772,57337.0,57328.0,0.061]
[1720776337582,0.455772,57337.0,57327.0,0.077213]
[1720776337583,0.15294014,57336.0,57332.0,0.0778]
[1720776337790,0.1,57336.0,57334.0,0.1388]
[1720776337992,0.1,57336.0,57335.0,0.1388]
[1720776338193,0.02455243,57346.0,57335.0,0.1388]
[1720776338343,0.012,57336.0,57335.0,0.1388]
[1720776338790,0.1805,57344.0,57335.0,0.1388]
[1720776338996,1.108248,57343.0,57335.0,0.1388]
[1720776339169,0.1,57342.0,57335.0,0.1388]
[1720776339701,0.1,57342.0,57335.0,0.1318]
[1720776339921,0.1,57342.0,57335.0,0.0778]
[1720776340346,0.012,57343.0,57335.0,0.0778]
[1720776340699,0.02855504,57346.0,57335.0,0.0778]
[1720776340895,0.009,57342.0,57335.0,0.0778]
[1720776341929,0.009,57342.0,57335.0,0.0788]
[1720776341930,0.016,57342.0,57335.0,0.0788]
[1720776342529,0.009,57342.0,57335.0,0.0778]
[1720776342733,0.015,57342.0,57337.0,0.0827]
[1720776342961,0.006,57342.0,57338.0,0.06]
[1720776343769,0.006,57342.0,57339.0,0.0827]
[1720776343984,0.015,57342.0,57341.0,0.0827]
[1720776344178,0.009,57342.0,57341.0,0.1427]
[1720776344380,0.016,57342.0,57341.0,0.1427]
[1720776344977,0.009,57342.0,57341.0,0.1427]
[1720776345327,0.016,57342.0,57341.0,0.001]
[1720776345737,0.009,57342.0,57332.0,0.1]
[1720776346163,0.009,57342.0,57330.0,0.2]
[1720776346164,0.018,57342.0,57338.0,0.001]
[1720776346369,0.20271163,57347.0,57330.0,0.1]
[1720776346539,1.32535916,57346.0,57330.0,0.1]
[1720776346759,1.32535916,57346.0,57341.0,0.001]
[1720776346760,0.009,57342.0,57341.0,0.001]
[1720776346951,0.03632116,57346.0,57330.0,0.1]
[1720776347117,1.288836,57345.0,57330.0,0.1]
[1720776347329,0.009,57342.0,57338.0,0.001]
[1720776347954,0.009,57342.0,57330.0,0.1]
[1720776347955,0.522144,57341.0,57330.0,0.1]
[1720776348173,0.1,57340.0,57329.0,0.0754]
[1720776348379,0.1,57340.0,57331.0,0.0653]
[1720776348380,0.05294014,57339.0,57331.0,0.0653]
[1720776348583,0.05294014,57339.0,57332.0,0.0754]
[1720776348755,0.05294014,57339.0,57333.0,0.0611]
[1720776349675,0.005,57339.0,57338.0,0.001]
[1720776349907,0.016,57342.0,57339.0,0.1392]
[1720776349908,0.007,57342.0,57339.0,0.1392]
[1720776350097,0.453004,57341.0,57339.0,0.0611]
[1720776350303,0.1,57346.0,57339.0,0.0611]
[1720776350304,0.648668,57345.0,57339.0,0.0611]
[1720776350508,0.1,57344.0,57339.0,0.0541]
[1720776350714,0.4404,57343.0,57339.0,0.0541]
[1720776350922,0.1,57342.0,57339.0,0.0451]
[1720776351123,0.438179,57341.0,57339.0,0.0451]
[1720776351379,0.1397,57339.0,57333.0,0.001]
[1720776351603,0.1,57338.0,57333.0,0.001]
[1720776352137,0.1,57338.0,57331.0,0.0821]
[1720776353257,0.106,57338.0,57331.0,0.0821]
[1720776353477,0.02457,57337.0,57331.0,0.0821]
[1720776353844,0.02457,57337.0,57332.0,0.0618]
[1720776354921,0.106,57338.0,57332.0,0.0618]
[1720776355325,0.006,57338.0,57332.0,0.0618]
[1720776355997,0.1766,57342.0,57332.0,0.0618]
[1720776356204,0.003,57337.0,57332.0,0.0618]
[1720776356410,0.007,57337.0,57332.0,0.0618]
[1720776356615,0.004,57337.0,57332.0,0.0618]
[1720776357203,0.004,57338.0,57332.0,0.0618]
[1720776357445,0.1,57340.0,57332.0,0.0618]
[1720776357680,1.220936,57333.0,57332.0,0.0618]
[1720776357880,2.018614,57333.0,57332.0,0.0618]
[1720776358667,2.018614,57333.0,57332.0,0.1389]
[1720776359754,1.669775,57333.0,57332.0,0.1389]
[1720776360197,1.669775,57333.0,57332.0,0.1399]
[1720776360841,1.669775,57333.0,57332.0,0.1419]
[1720776362319,2.018614,57333.0,57332.0,0.1419]
[1720776364121,1.669775,57333.0,57332.0,0.1419]
[1720776366002,1.495356,57333.0,57332.0,0.1419]
[1720776366216,1.669775,57333.0,57332.0,0.1419]
[1720776366833,1.68803173,57333.0,57332.0,0.1419]
[1720776367666,1.68803173,57333.0,57332.0,0.142813]
[1720776371605,1.71147746,57333.0,57332.0,0.142813]
[1720776379609,2.06031646,57333.0,57332.0,0.142813]
[1720776380046,1.71147746,57333.0,57332.0,0.142813]
[1720776382074,2.06031646,57333.0,57332.0,0.142813]
[1720776386593,1.71147746,57333.0,57332.0,0.142813]
[1720776387071,1.71147746,57333.0,57332.0,0.342813]
[1720776389550,1.71147746,57333.0,57332.0,0.442813]
[1720776389750,0.31612146,57333.0,57332.0,0.7669943]
[1720776389957,0.31612146,57333.0,57332.0,0.71005783]
[1720776389958,0.56496046,57333.0,57332.0,0.71005783]
[1720776390368,0.91379946,57333.0,57332.0,0.651813]
[1720776391013,0.91379946,57333.0,57332.0,0.650813]
[1720776391352,1.01379946,57333.0,57332.0,0.650813]
[1720776391759,1.01479946,57333.0,57332.0,0.652813]
[1720776392387,1.01479946,57333.0,57332.0,0.650813]
[1720776392768,1.01479946,57333.0,57332.0,0.652813]
[1720776393187,1.01479946,57333.0,57332.0,0.650813]
[1720776393392,1.01579946,57333.0,57332.0,0.664813]
[1720776393754,1.01479946,57333.0,57332.0,0.662813]
[1720776394156,1.01579946,57333.0,57332.0,0.666813]
[1720776394371,1.01479946,57333.0,57332.0,0.662813]
[1720776394774,1.01479946,57333.0,57332.0,0.666813]
[1720776394775,1.01579946,57333.0,57332.0,0.666813]
[1720776394980,1.36463846,57333.0,57332.0,0.666813]
[1720776395776,1.71347746,57333.0,57332.0,0.666813]
[1720776400237,1.71347746,57333.0,57332.0,0.457813]
[1720776400238,2.06231646,57333.0,57332.0,0.457813]
[1720776401675,2.06131646,57333.0,57332.0,0.453813]
[1720776402095,2.06231646,57333.0,57332.0,0.565813]
[1720776402292,2.06131646,57333.0,57332.0,0.551813]
[1720776402849,2.06131646,57333.0,57332.0,0.242813]
[1720776403051,2.06231646,57333.0,57332.0,0.149813]
[1720776403200,2.06314646,57333.0,57332.0,0.149813]
[1720776403816,2.06114646,57333.0,57332.0,0.139813]
[1720776404219,2.06214646,57333.0,57332.0,0.007913]
[1720776404496,2.06314646,57333.0,57332.0,0.010913]
[1720776405668,2.06214646,57333.0,57332.0,0.003913]
[1720776405873,2.06314646,57333.0,57332.0,0.009913]
[1720776406918,2.06314646,57333.0,57332.0,0.109913]
[1720776407113,2.06314646,57333.0,57332.0,0.009913]
[1720776407899,2.06314646,57333.0,57332.0,0.007543]
[1720776408855,2.20584646,57333.0,57332.0,0.007543]
[1720776410753,2.55468546,57333.0,57332.0,0.0071319]
[1720776410952,2.55468546,57333.0,57327.0,0.000913]
[1720776410953,1.56991,57328.0,57327.0,0.000913]
[1720776411112,1.75001,57328.0,57327.0,0.000913]
[1720776411313,2.447748,57328.0,57327.0,0.000913]
[1720776411516,2.367648,57328.0,57327.0,0.000913]
[1720776413545,2.368648,57328.0,57327.0,0.001913]
[1720776413967,2.368648,57328.0,57327.0,0.007913]
[1720776414167,2.369648,57328.0,57327.0,0.007913]
[1720776415804,1.67191,57328.0,57327.0,0.354513]
[1720776416184,1.67191,57328.0,57327.0,0.463513]
[1720776417027,1.67191,57328.0,57327.0,0.663513]
[1720776417028,1.323041,57328.0,57327.0,0.663513]
[1720776433713,0.625303,57328.0,57327.0,0.723513]
[1720776433918,0.525303,57328.0,57327.0,0.723513]
[1720776434122,0.874172,57328.0,57327.0,0.723513]
[1720776434837,0.873172,57328.0,57327.0,0.717513]
[1720776435038,0.872172,57328.0,57327.0,0.716513]
[1720776435283,0.873172,57328.0,57327.0,0.720513]
[1720776435490,0.873172,57328.0,57327.0,0.721513]
[1720776435491,0.874172,57328.0,57327.0,0.721513]
[1720776435702,0.874172,57328.0,57327.0,0.661513]
[1720776437108,0.79505213,57328.0,57327.0,0.7419156]
[1720776438815,0.79505213,57328.0,57327.0,0.8019156]
[1720776439019,0.44618313,57328.0,57327.0,0.8019156]
[1720776439439,0.79505213,57328.0,57327.0,0.8019156]
[1720776440673,0.44618313,57328.0,57327.0,0.8019156]
[1720776441469,0.176434,57328.0,57327.0,0.8019156]
[1720776441668,0.525303,57328.0,57327.0,0.8019156]
[1720776442682,0.874172,57328.0,57327.0,0.8019156]
[1720776442886,0.874172,57328.0,57327.0,0.7419156]
[1720776444142,0.874172,57328.0,57327.0,0.8019156]
[1720776453484,0.874172,57328.0,57327.0,0.8019156]
[1720776456298,0.697738,57328.0,57327.0,0.8019156]
[1720776456890,0.872172,57328.0,57327.0,0.8019156]
[1720776468124,0.873002,57328.0,57327.0,0.8019156]
[1720776483381,0.524133,57328.0,57327.0,0.8019156]
[1720776483719,0.00083,57328.0,57327.0,1.0019156]
[1720776483918,0.00083,57328.0,57327.0,1.5482276]
[1720776484124,0.00083,57328.0,57327.0,1.8971026]
[1720776484343,0.00083,57328.0,57327.0,0.9993526]
[1720776484561,0.00083,57328.0,57327.0,1.00241613]
[1720776484744,0.00083,57328.0,57327.0,0.82397913]
[1720776484910,0.00083,57328.0,57327.0,0.99841613]
[1720776485122,0.00183,57328.0,57327.0,1.00841613]
[1720776485522,0.00083,57328.0,57327.0,0.9953526]
[1720776485811,0.00083,57328.0,57327.0,0.8209156]
[1720776485982,0.00083,57328.0,57327.0,0.82163972]
[1720776486213,0.00183,57328.0,57327.0,0.83563972]
[1720776486383,0.00183,57328.0,57327.0,1.0083526]
[1720776486723,0.00083,57328.0,57327.0,0.9943526]
[1720776486954,0.00283,57328.0,57327.0,1.0223526]
[1720776487167,0.00283,57328.0,57327.0,0.8479156]
[1720776488886,0.00283,57328.0,57327.0,1.0223526]
[1720776489090,0.00283,57328.0,57327.0,1.2223526]
[1720776490559,0.00283,57328.0,57327.0,1.5712276]
[1720776492427,0.00083,57332.0,57331.0,0.5665]
[1720776492638,0.00083,57332.0,57331.0,1.04403594]
[1720776492858,0.00083,57332.0,57331.0,1.24146094]
[1720776493322,0.00083,57332.0,57331.0,0.90032159]
[1720776493529,0.175252,57332.0,57331.0,0.95892159]
[1720776493949,0.00183,57332.0,57331.0,0.97292159]
[1720776494157,0.00283,57332.0,57331.0,0.98692159]
[1720776498299,0.00283,57332.0,57331.0,1.18692159]
[1720776498470,0.00283,57332.0,57331.0,2.08204859]
[1720776498675,0.00083,57339.0,57338.0,1.083104]
[1720776498877,0.00083,57339.0,57338.0,1.736512]
[1720776499210,0.00083,57339.0,57338.0,2.08532]
[1720776500404,0.02093776,57353.0,57352.0,0.409]
[1720776500600,0.523075,57353.0,57352.0,0.509]
[1720776500806,0.871792,57353.0,57352.0,0.509]
[1720776501170,1.220509,57353.0,57352.0,0.509]
[1720776501377,1.32045837,57353.0,57352.0,0.509]
[1720776503385,1.46525837,57353.0,57352.0,0.314]
[1720776503632,1.46525837,57353.0,57352.0,0.014]
[1720776503633,2.16269237,57353.0,57352.0,0.014]
[1720776504071,2.16269237,57353.0,57348.0,0.3]
[1720776504072,0.523111,57349.0,57348.0,0.3]
[1720776504297,0.767911,57349.0,57348.0,0.1]
[1720776504557,0.767911,57349.0,57347.0,0.2]
[1720776504558,0.174377,57347.0,57346.0,0.1]
[1720776504799,1.365439,57347.0,57346.0,0.1]
[1720776505033,2.162947,57347.0,57346.0,0.1]
[1720776505693,2.162947,57347.0,57346.0,0.106]
[1720776505919,2.162947,57347.0,57346.0,0.006]
[1720776506157,0.52314,57346.0,57345.0,0.1]
[1720776506388,0.664849,57345.0,57344.0,0.1]
[1720776506617,1.462381,57345.0,57344.0,0.1]
[1720776506846,1.811147,57345.0,57344.0,0.1]
[1720776508031,2.159913,57345.0,57344.0,0.1]
[1720776508706,2.159913,57345.0,57344.0,0.104]
[1720776509320,2.159913,57345.0,57344.0,0.109]
[1720776510693,2.159913,57345.0,57344.0,0.309]
[1720776513073,2.159913,57345.0,57344.0,0.109]
[1720776516306,2.17816973,57345.0,57344.0,0.109]
[1720776518498,2.17816973,57345.0,57344.0,0.009]
[1720776518702,2.52693573,57345.0,57344.0,0.00895322]
[1720776518938,2.52693573,57345.0,57344.0,0.00352075]
[1720776519140,2.52693573,57345.0,57336.0,0.1]
[1720776519141,0.320707,57337.0,57336.0,0.1]
[1720776519313,1.118335,57337.0,57336.0,0.1]
[1720776519540,1.815963,57337.0,57336.0,0.1]
[1720776519747,2.164777,57337.0,57336.0,0.1]
[1720776521315,2.164777,57337.0,57336.0,0.3]
[1720776521516,2.164777,57337.0,57336.0,0.309]
[1720776522108,2.164777,57337.0,57336.0,0.317]
[1720776526675,1.669663,57337.0,57336.0,0.61111435]
[1720776526885,1.669663,57337.0,57336.0,0.67731435]
[1720776527713,1.66959227,57337.0,57336.0,0.67731435]
[1720776528427,1.66959227,57337.0,57336.0,0.671]
[1720776530063,1.32077827,57337.0,57336.0,0.671]
[1720776530287,1.34022917,57337.0,57336.0,0.671]
[1720776530610,1.34022917,57337.0,57336.0,0.7381]
[1720776530821,1.34022917,57337.0,57336.0,0.671]
[1720776535283,0.34879,57342.0,57336.0,0.671]
[1720776535284,0.348808,57339.0,57338.0,0.32]
[1720776535501,0.1941457,57342.0,57341.0,0.509]
[1720776535691,0.623176,57342.0,57341.0,0.509]
[1720776535850,0.97196,57342.0,57341.0,0.509]
[1720776536255,1.320746,57342.0,57341.0,0.509]
[1720776536662,1.320746,57342.0,57341.0,0.521]
[1720776537719,1.669532,57342.0,57341.0,0.521]
[1720776538000,1.815432,57342.0,57341.0,0.112]
[1720776538244,2.164218,57342.0,57341.0,0.124]
[1720776538484,2.164218,57342.0,57341.0,0.024]
[1720776542089,2.164218,57342.0,57341.0,0.124]
[1720776542304,2.164218,57342.0,57341.0,0.324]
[1720776542305,2.018318,57342.0,57341.0,0.324]
[1720776543988,1.669532,57342.0,57341.0,0.433]
[1720776544238,1.669532,57342.0,57341.0,0.499]
[1720776545419,1.669532,57342.0,57341.0,0.68411435]
[1720776546424,1.320746,57342.0,57341.0,0.6782]
[1720776548645,1.146354,57342.0,57341.0,0.6782]
[1720776548840,1.320746,57342.0,57341.0,0.6782]
[1720776552183,1.401046,57342.0,57341.0,0.024]
[1720776552423,1.482646,57342.0,57341.0,0.024]
[1720776553557,0.174407,57337.0,57336.0,0.3]
[1720776553775,0.274407,57337.0,57336.0,0.3]
[1720776554652,0.174419,57333.0,57332.0,0.1]
[1720776554883,0.174419,57333.0,57332.0,0.40306353]
[1720776555102,0.274419,57333.0,57332.0,0.40306353]
[1720776555333,0.274419,57333.0,57332.0,0.4]
[1720776555586,0.274419,57333.0,57332.0,0.3]
[1720776556721,0.274419,57333.0,57332.0,0.413]
[1720776556965,0.274419,57333.0,57332.0,0.426]
[1720776558177,0.435719,57333.0,57332.0,0.026]
[1720776558414,0.502219,57333.0,57332.0,0.026]
[1720776559398,0.502219,57333.0,57332.0,0.013]
[1720776559636,0.174431,57329.0,57328.0,0.04709326]
[1720776559882,0.274431,57329.0,57328.0,0.04709326]
[1720776560884,0.414931,57329.0,57328.0,0.05409326]
[1720776561114,0.414931,57329.0,57328.0,0.06109326]
[1720776562063,0.414931,57329.0,57328.0,0.06104199]
[1720776562474,0.414931,57329.0,57328.0,0.16104199]
[1720776562676,0.352231,57329.0,57328.0,0.16104199]
[1720776563180,0.274431,57329.0,57328.0,0.16104199]
[1720776564723,0.274431,57329.0,57328.0,0.47004199]
[1720776564949,0.274431,57329.0,57328.0,0.16104199]
[1720776565168,0.274431,57329.0,57328.0,0.24615634]
[1720776565392,0.274431,57329.0,57328.0,0.24706934]
[1720776569826,0.1815,57330.0,57328.0,0.24706934]
[1720776570035,0.1815,57330.0,57328.0,0.06195499]
[1720776570036,0.1408,57329.0,57328.0,0.06195499]
[1720776570976,0.1408,57329.0,57328.0,0.05495499]
[1720776571208,0.1408,57329.0,57328.0,0.06095499]
[1720776571681,0.1408,57329.0,57328.0,0.05495499]
[1720776571917,0.1408,57329.0,57328.0,0.06195499]
[1720776572148,0.2408,57329.0,57328.0,0.06195499]
[1720776572945,0.2408,57329.0,57328.0,0.05495499]
[1720776573122,0.2408,57329.0,57328.0,0.04795499]
[1720776573532,0.2408,57329.0,57328.0,0.04895499]
[1720776573930,0.2408,57329.0,57328.0,0.04795499]
[1720776574136,0.2408,57329.0,57328.0,0.04895499]
[1720776575465,0.2767679,57329.0,57328.0,0.04895499]
[1720776576138,0.2408,57329.0,57328.0,0.04895499]
[1720776576366,0.1815,57329.0,57328.0,0.04895499]
[1720776576568,0.0815,57329.0,57328.0,0.04895499]
[1720776576907,0.0815,57329.0,57328.0,0.24895499]
[1720776577107,0.0815,57329.0,57328.0,0.04895499]
[1720776580005,0.0815,57329.0,57328.0,0.05162868]
[1720776580304,0.0815,57329.0,57328.0,0.04895499]
[1720776581713,0.157,57329.0,57328.0,0.04895499]
[1720776581917,0.257,57329.0,57328.0,0.04895499]
[1720776584445,0.1815,57329.0,57328.0,0.11475499]
[1720776584657,0.0815,57329.0,57328.0,0.11475499]
[1720776586185,0.0815,57329.0,57328.0,0.11781852]
[1720776586371,0.1007879,57329.0,57328.0,0.05201852]
[1720776586573,0.1007879,57329.0,57328.0,0.04895499]
[1720776586574,0.1815,57329.0,57328.0,0.04895499]
[1720776587433,0.2622,57329.0,57328.0,0.04895499]
[1720776590151,0.1,57329.0,57328.0,0.04895499]
[1720776590324,0.0815,57330.0,57329.0,0.0606]
[1720776590526,0.0815,57330.0,57329.0,0.1428]
[1720776590728,0.1,57332.0,57329.0,0.1428]
[1720776590928,0.1,57332.0,57330.0,0.2]
[1720776591132,0.13737902,57333.0,57330.0,0.2]
[1720776591539,0.13737902,57333.0,57329.0,0.3428]
[1720776592003,0.001,57330.0,57329.0,0.3428]
[1720776592213,0.13737902,57333.0,57329.0,0.3428]
[1720776592626,0.14037902,57333.0,57330.0,0.2]
[1720776592829,0.13737902,57333.0,57330.0,0.2]
[1720776593455,0.0815,57331.0,57330.0,0.2]
[1720776595017,0.0845,57331.0,57330.0,0.2]
[1720776595917,0.0865,57331.0,57330.0,0.2]
[1720776596736,0.0865,57331.0,57330.0,0.309]
[1720776598163,0.0865,57331.0,57330.0,0.4479]
[1720776598632,0.00583,57331.0,57330.0,0.5479]
[1720776598815,0.00583,57331.0,57330.0,0.71608823]
[1720776599501,0.00383,57331.0,57330.0,0.71608823]
[1720776599740,0.00383,57331.0,57330.0,0.6479]
[1720776599976,0.00583,57331.0,57330.0,0.6479]
[1720776600377,0.00583,57331.0,57330.0,0.7079]
[1720776600739,0.00283,57331.0,57330.0,0.6479]
[1720776601089,0.00283,57331.0,57330.0,0.6589]
[1720776601840,0.00083,57331.0,57330.0,0.6589]
[1720776602252,0.00083,57331.0,57330.0,0.6699]
[1720776606191,0.00083,57331.0,57330.0,0.75628823]
[1720776606820,0.00083,57331.0,57330.0,0.6699]
[1720776609052,0.05682113,57343.0,57338.0,0.2]
[1720776609223,0.05682113,57343.0,57339.0,0.20306353]
[1720776609462,0.0815,57340.0,57339.0,0.20306353]
[1720776609866,0.0815,57340.0,57339.0,0.2]
[1720776610470,0.0815,57340.0,57338.0,0.2]
[1720776610672,0.0825,57340.0,57338.0,0.2]
[1720776610800,0.0825,57340.0,57339.0,0.2]
[1720776611412,0.0815,57340.0,57339.0,0.2]
[1720776611830,0.0825,57340.0,57339.0,0.2]
[1720776612043,0.0815,57340.0,57339.0,0.2]
[1720776612483,0.1,57342.0,57339.0,0.2]
[1720776612608,0.0815,57340.0,57339.0,0.2]
[1720776613317,0.0815,57340.0,57337.0,0.0624]
[1720776613518,0.0825,57340.0,57337.0,0.0624]
[1720776613775,0.0825,57340.0,57336.0,0.0767]
[1720776613976,0.0815,57337.0,57336.0,0.0767]
[1720776614400,0.0815,57337.0,57335.0,0.1]
[1720776614598,0.1815,57337.0,57335.0,0.1]
[1720776615027,0.0815,57337.0,57335.0,0.1]
[1720776616510,0.0815,57337.0,57335.0,0.103]
[1720776617013,0.1,57340.0,57336.0,0.2]
[1720776617157,0.1,57340.0,57337.0,0.00306353]
[1720776617362,0.0815,57338.0,57337.0,0.20306353]
[1720776617562,0.0815,57338.0,57337.0,0.00306353]
[1720776617771,0.0815,57338.0,57336.0,0.2]
[1720776618872,0.0815,57338.0,57337.0,0.001]
[1720776619289,0.0815,57338.0,57337.0,0.201]
[1720776619838,0.03101971,57343.0,57337.0,0.201]
[1720776620048,0.03101971,57343.0,57338.0,0.08376353]
[1720776620260,0.0815,57339.0,57338.0,0.00306353]
[1720776620869,0.0815,57339.0,57338.0,0.2]
[1720776621266,0.003,57343.0,57340.0,0.2]
[1720776621507,0.01843798,57347.0,57344.0,0.2]
[1720776621716,0.01843798,57347.0,57345.0,0.0792]
[1720776621929,0.0815,57347.0,57346.0,0.3738]